fUST/lending_fUST_20260422
["ID","MTS","AMOUNT","RATE_DAILY","PERIOD"]
[420990455,1776870885801,1000.0,0.00024658,120]
[420990456,1776870891761,1000.0,0.00024658,120]
[420990457,1776870915814,1204.13031094,0.00024658,120]
[420990458,1776870943516,1517.0,0.00019329,120]
[420990459,1776870944846,1517.0,0.00020295,120]
[420990460,1776870946174,1517.0,0.0002131,120]
[420990461,1776870947420,1517.0,0.00022376,120]
[420990462,1776870949038,1517.0,0.00023494,120]
[420990463,1776870949128,1000.0,0.00024658,120]
[420990464,1776870949164,631.0,0.0001841,120]
[420990465,1776870950472,631.0,0.0001933,120]
[420990466,1776870951793,631.0,0.00020297,120]
[420990467,1776870953054,631.0,0.00021312,120]
[420990468,1776870954306,631.0,0.00022377,120]
[420990469,1776870955649,631.0,0.00023496,120]
[420990470,1776870958534,1000.0,0.00024658,120]
[420990476,1776870981368,532.0,0.00024658,120]
[420990478,1776871084426,3000.0,0.00024657,120]
[420990479,1776871090270,3000.0,0.00024657,120]
[420990480,1776871097319,3000.0,0.00024657,120]
[420990481,1776871103754,3000.0,0.00024657,120]
[420990482,1776871109977,3000.0,0.00024657,120]
[420990483,1776871116344,3000.0,0.00024657,120]
[420990484,1776871123537,3000.0,0.00024657,120]
[420990485,1776871130299,2000.0,0.00024657,120]
[420990486,1776871137782,2000.0,0.00024657,120]
[420990487,1776871145193,2000.0,0.00024657,120]
[420990488,1776871156787,357.57874435,0.00024657,120]
[420990489,1776871193951,1844.36,0.000245,120]
[420990490,1776871208248,758.0,0.00020595,120]
[420990491,1776871209468,758.0,0.00021625,120]
[420990492,1776871211032,758.0,0.00022706,120]
[420990493,1776871212545,758.0,0.00023841,120]
[420990494,1776871234574,190.0,0.00020705,120]
[420990495,1776871236061,190.0,0.0002174,120]
[420990496,1776871237329,190.0,0.00022827,120]
[420990497,1776871238584,190.0,0.00023969,120]
[420990511,1776871499070,3000.0,0.00024658,120]
[420990512,1776871511894,455.0,0.00020625,120]
[420990513,1776871513254,455.0,0.00021656,120]
[420990514,1776871514537,455.0,0.00022739,120]
[420990515,1776871515897,455.0,0.00023876,120]
[420990516,1776871535877,163.0,0.00020732,120]
[420990517,1776871537209,163.0,0.00021769,120]
[420990518,1776871538701,163.0,0.00022857,120]
[420990519,1776871540135,163.0,0.00024,120]
[420990520,1776871648037,-151.0,8.658e-05,23]
[420990521,1776871649765,-149.0,8.658e-05,23]
[420990553,1776871818871,273.0,0.00020632,120]
[420990554,1776871820316,273.0,0.00021664,120]
[420990555,1776871821589,273.0,0.00022747,120]
[420990556,1776871823238,273.0,0.00023884,120]
[420990613,1776871832056,-5000.0,8.36e-05,2]
[420990615,1776871832068,-867.5887,8.444e-05,2]
[420990617,1776871832078,-150.0,8.529e-05,2]
[420990619,1776871832088,-300.0,8.543e-05,17]
[420990621,1776871832099,-2246.56729749,9.341e-05,2]
[420990623,1776871832109,-300.0,9.44e-05,2]
[420990625,1776871832120,-4501.47095886,9.441e-05,2]
[420990627,1776871832129,-4662.5697929,9.541e-05,2]
[420990628,1776871832138,-300.0,9.629e-05,2]
[420990630,1776871832148,-300.0,9.629e-05,2]
[420990632,1776871832159,-300.0,9.629e-05,2]
[420990634,1776871832169,-300.0,9.629e-05,2]
[420990636,1776871832179,-300.0,9.629e-05,2]
[420990638,1776871832189,-300.0,9.629e-05,2]
[420990640,1776871832200,-300.0,9.629e-05,2]
[420990642,1776871832210,-300.0,9.629e-05,2]
[420990644,1776871832220,-300.0,9.629e-05,2]
[420990647,1776871832230,-300.0,9.629e-05,2]
[420990649,1776871832240,-300.0,9.629e-05,2]
[420990651,1776871832249,-300.0,9.629e-05,2]
[420990653,1776871832259,-300.0,9.629e-05,2]
[420990655,1776871832269,-300.0,9.629e-05,2]
[420990656,1776871832278,-300.0,9.629e-05,2]
[420990658,1776871832288,-5026.93336514,9.641e-05,2]
[420990660,1776871832297,-5391.2969375,9.741e-05,2]
[420990662,1776871832307,-600.0,9.821e-05,2]
[420990664,1776871832317,-5755.66050987,9.841e-05,2]
[420990666,1776871832326,-558.0,9.843e-05,2]
[420990668,1776871832336,-6120.02408223,9.941e-05,2]
[420990670,1776871832346,-6484.3876546,0.00010328,2]
[420990672,1776871832356,-420.0,0.00010384,2]
[420990674,1776871832365,-177.0,0.00010529,2]
[420990676,1776871832375,-720.0,0.00010803,2]
[420990678,1776871832384,-14348.6696669,0.00010959,2]
[420990679,1776871832394,-500.0,0.00011087,2]
[420990682,1776871832406,-338.12043114,0.00011087,2]
[420990683,1776871832416,-500.0,0.00011087,2]
[420990685,1776871832425,-500.0,0.00011087,2]
[420990687,1776871832435,-500.0,0.00011087,2]
[420990689,1776871832444,-500.0,0.00011087,2]
[420990691,1776871832454,-500.0,0.00011087,2]
[420990693,1776871832464,-245.20839428,0.00011087,2]
[420990695,1776871832474,-500.0,0.00011087,2]
[420990697,1776871832483,-500.0,0.00011087,2]
[420990699,1776871832493,-500.0,0.00011087,2]
[420990701,1776871832503,-500.0,0.00011087,2]
[420990703,1776871832514,-500.0,0.00011087,2]
[420990705,1776871832523,-500.0,0.00011087,2]
[420990706,1776871832533,-500.0,0.00011087,2]
[420990707,1776871832543,-500.0,0.00011087,2]
[420990708,1776871832553,-500.0,0.00011087,2]
[420990709,1776871832563,-500.0,0.00011087,2]
[420990710,1776871832573,-500.0,0.00011087,2]
[420990711,1776871832584,-500.0,0.00011087,2]
[420990712,1776871832594,-500.0,0.00011087,2]
[420990713,1776871832604,-500.0,0.00011087,2]
[420990714,1776871832615,-500.0,0.00011087,2]
[420990715,1776871832625,-500.0,0.00011087,2]
[420990716,1776871832634,-500.0,0.00011087,2]
[420990718,1776871832645,-500.0,0.00011087,2]
[420990720,1776871832654,-500.0,0.00011087,2]
[420990722,1776871832664,-500.0,0.00011087,2]
[420990724,1776871832673,-500.0,0.00011087,2]
[420990726,1776871832683,-500.0,0.00011087,2]
[420990728,1776871832693,-500.0,0.00011087,2]
[420990730,1776871832702,-191.25297851,0.00011087,2]
[420990732,1776871832712,-500.0,0.00011087,2]
[420990734,1776871832724,-500.0,0.00011087,2]
[420990736,1776871832733,-500.0,0.00011087,2]
[420990738,1776871832743,-500.0,0.00011087,2]
[420990740,1776871832752,-625.54890196,0.00011087,2]
[420990742,1776871832766,-500.0,0.00011087,2]
[420990744,1776871832775,-500.0,0.00011087,2]
[420990746,1776871832785,-500.0,0.00011087,2]
[420990748,1776871832795,-500.0,0.00011087,2]
[420990750,1776871832805,-500.0,0.00011087,2]
[420990752,1776871832815,-500.0,0.00011087,2]
[420990754,1776871832825,-500.0,0.00011087,2]
[420990756,1776871832834,-500.0,0.00011087,2]
[420990758,1776871832844,-500.0,0.00011087,2]
[420990760,1776871832854,-500.0,0.00011087,2]
[420990762,1776871832864,-500.0,0.00011087,2]
[420990764,1776871832873,-500.0,0.00011087,2]
[420990766,1776871832882,-500.0,0.00011087,2]
[420990767,1776871832892,-500.0,0.00011087,2]
[420990769,1776871832901,-500.0,0.00011087,2]
[420990772,1776871832912,-500.0,0.00011087,2]
[420990774,1776871832922,-500.0,0.00011087,2]
[420990776,1776871832931,-500.0,0.00011087,2]
[420990778,1776871832940,-500.0,0.00011087,2]
[420990780,1776871832950,-500.0,0.00011087,2]
[420990782,1776871832960,-69.25240669,0.00011087,2]
[420990867,1776871838317,163.0,0.00020737,120]
[420990868,1776871839316,-430.74759331,0.00011087,2]
[420990869,1776871839325,-200.60891373,0.00011087,2]
[420990870,1776871839338,-153.63209574,0.00011087,2]
[420990871,1776871839348,-500.0,0.00011087,2]
[420990872,1776871839358,-500.0,0.00011087,2]
[420990873,1776871839367,-500.0,0.00011087,2]
[420990874,1776871839377,-500.0,0.00011087,2]
[420990875,1776871839387,-500.0,0.00011087,2]
[420990876,1776871839397,-500.0,0.00011087,2]
[420990877,1776871839407,-500.0,0.00011087,2]
[420990878,1776871839416,-500.0,0.00011087,2]
[420990879,1776871839426,-500.0,0.00011087,2]
[420990880,1776871839435,-500.0,0.00011087,2]
[420990881,1776871839446,-500.0,0.00011087,2]
[420990882,1776871839456,-500.0,0.00011087,2]
[420990883,1776871839467,-500.0,0.00011087,2]
[420990884,1776871839477,-500.0,0.00011087,2]
[420990885,1776871839487,-500.0,0.00011087,2]
[420990886,1776871839497,-500.0,0.00011087,2]
[420990887,1776871839507,-500.0,0.00011087,2]
[420990888,1776871839520,-500.0,0.00011087,2]
[420990889,1776871839531,-340.48886258,0.00011087,2]
[420990890,1776871839542,-500.0,0.00011087,2]
[420990891,1776871839553,-500.0,0.00011087,2]
[420990892,1776871839563,-500.0,0.00011087,2]
[420990893,1776871839573,-500.0,0.00011087,2]
[420990894,1776871839584,-649.99999999,0.00011087,2]
[420990895,1776871839594,-500.0,0.00011087,2]
[420990896,1776871839604,-500.0,0.00011087,2]
[420990897,1776871839614,-500.0,0.00011087,2]
[420990898,1776871839624,-500.0,0.00011087,2]
[420990899,1776871839633,-500.0,0.00011088,2]
[420990900,1776871839643,-6756.37462023,0.00011089,2]
[420990901,1776871839653,-250.0,0.00011343,2]
[420990902,1776871839663,-500.0,0.00011362,2]
[420990903,1776871839673,-587.0,0.00011422,2]
[420990904,1776871839683,-500.0,0.00011636,2]
[420990905,1776871839693,-729.57,0.00011678,2]
[420990906,1776871839704,-726.6,0.00011707,2]
[420990907,1776871839714,-864.88,0.00011765,2]
[420990909,1776871839724,-191.97146351,0.00011802,2]
[420990911,1776871839734,-522.24,0.00011844,2]
[420990912,1776871839744,-7124.36005631,0.0001185,2]
[420990913,1776871839754,-864.0,0.00011883,2]
[420990914,1776871839767,-713.85,0.00011921,2]
[420990915,1776871839777,-500.0,0.00012022,2]
[420990917,1776871839788,-500.0,0.00012022,2]
[420990918,1776871839798,-223.32722783,0.00012027,2]
[420990919,1776871839808,-512.32646561,0.00012066,2]
[420990920,1776871839819,-204.0,0.00012529,2]
[420990921,1776871839828,-394.0,0.00012565,2]
[420990922,1776871839839,-1000.0,0.0001257,2]
[420990923,1776871839848,-1000.0,0.0001257,2]
[420990924,1776871839859,-8591.15894608,0.00012612,2]
[420990925,1776871839869,-201.55105774,0.00012804,2]
[420990926,1776871839879,-500.4750352,0.00013022,2]
[420990927,1776871839890,-1000.0,0.00013071,2]
[420990928,1776871839899,-1500.0,0.00013118,2]
[420990929,1776871839910,-1500.0,0.00013118,2]
[420990930,1776871839921,-192.51964706,0.00013233,14]
[420990931,1776871839930,-500.0,0.00013346,2]
[420990932,1776871839940,-500.0,0.00013346,3]
[420990933,1776871839950,-500.0,0.00013346,4]
[420990934,1776871839961,-500.0,0.00013372,2]
[420990935,1776871839972,-500.0,0.00013372,2]
[420990937,1776871839983,-500.0,0.00013372,2]
[420990939,1776871839993,-500.0,0.00013372,2]
[420990941,1776871840003,-500.0,0.00013372,2]
[420990944,1776871840016,-170.62124357,0.00013372,2]
[420990946,1776871840027,-500.0,0.00013372,2]
[420990948,1776871840037,-500.0,0.00013372,2]
[420990950,1776871840048,-500.0,0.00013372,2]
[420990952,1776871840059,-500.0,0.00013372,2]
[420990954,1776871840069,-9011.27828161,0.00013373,2]
[420990956,1776871840079,-23.77499694,0.00013415,2]
[420990959,1776871840095,-156.22500306,0.00013415,2]
[420990961,1776871840105,-151.0,0.00013415,2]
[420990963,1776871840115,-151.0,0.00013415,2]
[420990965,1776871840125,-151.0,0.00013415,2]
[420990967,1776871840134,-151.0,0.00013415,2]
[420990969,1776871840144,-151.0,0.00013415,2]
[420990971,1776871840153,-151.0,0.00013415,2]
[420990973,1776871840163,-151.0,0.00013415,2]
[420990974,1776871840173,-151.0,0.00013415,2]
[420990976,1776871840183,-151.0,0.00013415,2]
[420990978,1776871840194,-151.0,0.00013415,2]
[420990980,1776871840203,-151.0,0.00013415,2]
[420990982,1776871840213,-151.0,0.00013415,2]
[420990984,1776871840223,-151.0,0.00013415,2]
[420990986,1776871840233,-151.0,0.00013415,2]
[420990988,1776871840243,-151.0,0.00013415,2]
[420990990,1776871840253,-151.0,0.00013415,2]
[420990992,1776871840262,-151.0,0.00013415,2]
[420990994,1776871840272,-151.0,0.00013415,2]
[420990996,1776871840282,-151.0,0.00013415,2]
[420990998,1776871840292,-151.0,0.00013415,2]
[420991000,1776871840302,-502.22319693,0.0001345,2]
[420991002,1776871840312,-2000.0,0.00013666,2]
[420991004,1776871840323,-2000.0,0.00013666,2]
[420991005,1776871840332,-1000.0,0.00013698,2]
[420991007,1776871840342,-848.1629485,0.00013698,2]
[420991009,1776871840352,-1000.0,0.00013698,2]
[420991011,1776871840362,-500.0,0.00013698,2]
[420991013,1776871840371,-500.0,0.00013698,2]
[420991015,1776871840381,-500.0,0.00013698,2]
[420991017,1776871840391,-1000.0,0.00013699,2]
[420991019,1776871840400,-500.0,0.00013831,2]
[420991020,1776871840409,-500.0,0.00013908,2]
[420991022,1776871840419,-10057.95783584,0.00014134,2]
[420991024,1776871840429,-2500.0,0.00014214,2]
[420991026,1776871840440,-2500.0,0.00014214,2]
[420991028,1776871840449,-225.98279647,0.00014378,2]
[420991030,1776871840459,-1000.0,0.00014378,2]
[420991032,1776871840469,-244.0,0.00014378,2]
[420991034,1776871840479,-1000.0,0.00014379,2]
[420991036,1776871840489,-201.55105772,0.00014396,2]
[420991038,1776871840499,-231.0,0.00014529,2]
[420991040,1776871840509,-1397.72830355,0.00014762,2]
[420991042,1776871840519,-3000.0,0.00014762,2]
[420991044,1776871840529,-11266.18194298,0.00014895,2]
[420991046,1776871840539,-600.06716233,0.00014927,2]
[420991048,1776871840548,-500.0,0.00015393,2]
[420991050,1776871840558,-232.13,0.00015646,3]
[420991052,1776871840569,-696.44,0.00015646,3]
[420991054,1776871840579,-11524.75672561,0.00015656,3]
[420991056,1776871840589,-14446.08,0.00015734,3]
[420991058,1776871840599,-151.0,0.000158,2]
[420991060,1776871840610,-1000.0,0.00015816,2]
[420991062,1776871840619,-492.0,0.00015816,2]
[420991064,1776871840629,-201.55105772,0.00015989,2]
[420991066,1776871840639,-500.0,0.00016149,5]
[420991068,1776871840649,-180.0,0.00016154,2]
[420991070,1776871840659,-151.0,0.000162,2]
[420991072,1776871840778,-14446.08,0.00016282,3]
[420991073,1776871840811,-500.0,0.00016383,2]
[420991074,1776871840822,-160.0,0.00016391,2]
[420991075,1776871840834,-12991.55561538,0.00016417,3]
[420991076,1776871840845,-299.18,0.00016438,2]
[420991077,1776871840857,-258.0,0.00016529,2]
[420991078,1776871840869,-151.0,0.000166,2]
[420991079,1776871840881,-371.455002,0.00016762,7]
[420991080,1776871840894,-160.0,0.00016762,2]
[420991081,1776871840905,-2031.788251,0.00016762,2]
[420991082,1776871840916,-3903.576503,0.00016762,2]
[420991083,1776871840927,-245.167148,0.00016762,7]
[420991084,1776871840940,-245.171643,0.00016835,7]
[420991085,1776871840951,-160.0,0.00016835,2]
[420991086,1776871840963,-511.060339,0.00016835,2]
[420991087,1776871840974,-862.120679,0.00016835,2]
[420991088,1776871840985,-200.32726398,0.00016858,2]
[420991089,1776871841002,-461.67526834,0.00016858,2]
[420991090,1776871841015,-537.6845,0.00016858,2]
[420991091,1776871841034,-232.34705367,0.00016858,2]
[420991092,1776871841046,-537.6845,0.00016858,2]
[420991093,1776871841060,-151.0,0.00016858,2]
[420991094,1776871841072,-2150.738,0.00016858,2]
[420991095,1776871841085,-557.5788265,0.00016913,2]
[420991096,1776871841097,-578.20924308,0.00016968,2]
[420991097,1776871841109,-464.26,0.00017016,3]
[420991098,1776871841120,-599.60298507,0.00017023,2]
[420991099,1776871841130,-621.78829552,0.00017078,2]
[420991100,1776871841143,-151.0,0.000171,2]
[420991101,1776871841154,-28892.16,0.00017104,3]
[420991102,1776871841165,-644.79446246,0.00017133,2]
[420991103,1776871841175,-13177.25039125,0.00017179,3]
[420991104,1776871841185,-668.65185757,0.00017188,2]
[420991105,1776871841197,-693.3919763,0.00017243,2]
[420991106,1776871841209,-719.04747942,0.00017298,2]
[420991107,1776871841221,-745.65223616,0.00017353,2]
[420991108,1776871841232,-1000.0,0.00017398,2]
[420991109,1776871841243,-791.0,0.00017398,2]
[420991110,1776871841253,-557.5788265,0.00017406,2]
[420991111,1776871841264,-2230.315306,0.00017406,2]
[420991112,1776871841275,-773.2413689,0.00017408,2]
[420991113,1776871841287,-801.85129955,0.00017463,2]
[420991114,1776871841297,-151.0,0.000175,2]
[420991115,1776871841308,-201.55105772,0.00017581,2]
[420991116,1776871841321,-168.843182,0.000176,7]
[420991117,1776871841332,-2770.620343,0.000176,2]
[420991118,1776871841344,-28892.16,0.00017652,3]
[420991119,1776871841355,-1190.0,0.0001766,2]
[420991120,1776871841367,-696.900463,0.00017677,2]
[420991121,1776871841378,-160.0,0.00017695,3]
[420991122,1776871841389,-500.0,0.00017796,6]
[420991123,1776871841399,-500.0,0.00017851,7]
[420991124,1776871841414,-175.0283438,0.00017898,2]
[420991125,1776871841427,-300.0,0.00017898,2]
[420991126,1776871841437,-151.0,0.000179,2]
[420991127,1776871841447,-2186.3,0.000179,2]
[420991128,1776871841457,-1190.0,0.00017934,2]
[420991129,1776871841468,-14458.35450514,0.0001794,3]
[420991130,1776871841478,-517.7901735,0.00017954,2]
[420991131,1776871841488,-2312.83697232,0.00017954,2]
[420991132,1776871841499,-1190.0,0.00018208,2]
[420991133,1776871841510,-156.587,0.00018227,2]
[420991134,1776871841533,-2208.0,0.00018267,2]
[420991135,1776871841544,-645.0,0.00018267,2]
[420991136,1776871841554,-1408.0,0.00018267,2]
[420991137,1776871841566,-441.0,0.00018267,2]
[420991138,1776871841577,-184.0,0.00018267,2]
[420991139,1776871841589,-151.0,0.000183,2]
[420991140,1776871841599,-500.0,0.00018363,2]
[420991141,1776871841609,-500.0,0.00018396,5]
[420991142,1776871841619,-151.5,0.00018452,2]
[420991143,1776871841630,-151.5,0.00018452,2]
[420991144,1776871841640,-151.5,0.00018452,2]
[420991145,1776871841651,-277.6555079,0.00018452,2]
[420991146,1776871841662,-1190.0,0.00018482,2]
[420991147,1776871841672,-2398.4119403,0.00018502,2]
[420991148,1776871841684,-285.0,0.00018529,2]
[420991149,1776871841694,-151.0,0.000187,2]
[420991150,1776871841704,-151.0,0.000187,2]
[420991151,1776871841714,-14841.30321381,0.00018701,3]
[420991152,1776871841727,-177.48501553,0.00018702,2]
[420991153,1776871841738,-1190.0,0.00018756,2]
[420991154,1776871841749,-273.54376262,0.0001882,2]
[420991155,1776871841759,-2186.3,0.000189,2]
[420991156,1776871841769,-791.0,0.000189,2]
[420991157,1776871841780,-1190.0,0.0001903,2]
[420991158,1776871841790,-700.13647898,0.0001905,2]
[420991159,1776871841801,-151.0,0.000191,2]
[420991160,1776871841811,-151.0,0.000191,2]
[420991161,1776871841821,-2000.0,0.00019109,7]
[420991162,1776871841831,-1000.0,0.00019137,2]
[420991163,1776871841841,-1000.0,0.00019137,2]
[420991164,1776871841851,-201.55105772,0.00019173,2]
[420991165,1776871841862,-300.0,0.00019178,2]
[420991166,1776871841872,-38000.0,0.00019218,3]
[420991167,1776871841883,-38000.0,0.00019227,3]
[420991168,1776871841893,-38000.0,0.00019236,3]
[420991169,1776871841903,-38000.0,0.00019245,3]
[420991170,1776871841913,-38000.0,0.00019254,3]
[420991171,1776871841924,-38000.0,0.00019262,3]
[420991172,1776871841935,-38000.0,0.00019271,3]
[420991173,1776871841945,-500.0,0.00019273,2]
[420991174,1776871841955,-1440.722578,0.00019276,2]
[420991175,1776871841965,-38000.0,0.0001928,3]
[420991176,1776871841974,-1190.0,0.00019304,2]
[420991177,1776871841984,-153.0720201,0.00019324,2]
[420991178,1776871841995,-362.388241,0.00019361,2]
[420991179,1776871842004,-14906.75692291,0.00019462,3]
[420991180,1776871842018,-151.0,0.000195,2]
[420991181,1776871842029,-151.0,0.000195,2]
[420991182,1776871842040,-1190.0,0.00019578,2]
[420991183,1776871842050,-160.0,0.00019592,4]
[420991184,1776871842060,-160.0,0.00019592,5]
[420991185,1776871842070,-185.80901213,0.00019596,2]
[420991186,1776871842081,-1595.09790627,0.000196,2]
[420991187,1776871842092,-1000.0,0.00019821,2]
[420991188,1776871842102,-1190.0,0.00019852,2]
[420991189,1776871842112,-500.0,0.00019873,2]
[420991190,1776871842122,-2186.3,0.000199,2]
[420991191,1776871842131,-5854.87873554,0.000199,2]
[420991192,1776871842141,-500.0,0.00019912,2]
[420991193,1776871842150,-2936.3513124,0.00019927,2]
[420991194,1776871842160,-500.0,0.00019973,2]
[420991195,1776871842170,-500.0,0.00019973,2]
[420991196,1776871842181,-500.0,0.00019973,2]
[420991197,1776871842190,-500.0,0.00019973,2]
[420991198,1776871842201,-239.7482029,0.00019973,2]
[420991199,1776871842211,-500.0,0.00019973,2]
[420991200,1776871842221,-500.0,0.00019973,2]
[420991201,1776871842231,-373.95706971,0.00019973,2]
[420991202,1776871842241,-500.0,0.00019973,2]
[420991203,1776871842251,-500.0,0.00019973,2]
[420991204,1776871842264,-500.0,0.00019973,2]
[420991205,1776871842274,-500.0,0.00019973,2]
[420991206,1776871842284,-500.0,0.00019973,2]
[420991207,1776871842293,-500.86451831,0.00019973,2]
[420991208,1776871842303,-500.0,0.00019998,2]
[420991209,1776871842313,-500.0,0.00019998,2]
[420991210,1776871842323,-500.0,0.00019998,2]
[420991211,1776871842333,-500.0,0.00019999,2]
[420991212,1776871842342,-500.0,0.00019999,2]
[420991214,1776871842354,-500.0,0.00019999,2]
[420991216,1776871842363,-500.0,0.00019999,2]
[420991218,1776871842373,-202.09,0.00019999,2]
[420991220,1776871842382,-44387.61350706,0.0002,2]
[420991222,1776871842396,-333480.13346916,0.0002,2]
[420991223,1776871842405,-3828.0,0.0002,2]
[420991224,1776871842415,-150.0,0.0002,2]
[420991225,1776871842424,-600.6,0.0002,2]
[420991226,1776871842434,-14863.1237127,0.0002,2]
[420991228,1776871842444,-375.6315397,0.0002,2]
[420991230,1776871842454,-204.92988575,0.0002,2]
[420991231,1776871842464,-1000.0,0.0002,2]
[420991232,1776871842473,-161.63573537,0.0002,2]
[420991233,1776871842483,-20000.0,0.0002,2]
[420991234,1776871842493,-1000.0,0.0002,15]
[420991235,1776871842503,-156.39333008,0.0002,2]
[420991236,1776871842513,-500.0,0.0002,20]
[420991237,1776871842522,-207.65125786,0.0002,2]
[420991238,1776871842532,-5000.0,0.0002,45]
[420991239,1776871842542,-28481.12771215,0.0002,2]
[420991240,1776871842551,-350.86291391,0.0002,10]
[420991242,1776871842561,-505826.85937945,0.0002,2]
[420991244,1776871842571,-112194.43354946,0.0002,2]
[420991246,1776871842580,-6411.61629666,0.0002,2]
[420991248,1776871842590,-40111.64756101,0.0002,2]
[420991249,1776871842601,-9824.22,0.0002,30]
[420991250,1776871842610,-20000.0,0.0002,14]
[420991251,1776871842620,-1000.0,0.0002,2]
[420991253,1776871842629,-1000.0,0.0002,7]
[420991255,1776871842640,-47653.53864803,0.0002,2]
[420991257,1776871842650,-161.2,0.0002,2]
[420991258,1776871842661,-1037.41838829,0.0002,10]
[420991260,1776871842670,-60226.0,0.0002,7]
[420991261,1776871842680,-5592.98356928,0.0002,2]
[420991262,1776871842689,-481.0,0.0002,2]
[420991263,1776871842698,-297.0,0.0002,2]
[420991264,1776871842708,-200.0,0.0002,2]
[420991265,1776871842718,-468.0,0.0002,2]
[420991266,1776871842728,-976.0,0.0002,2]
[420991267,1776871842738,-518.0,0.0002,2]
[420991268,1776871842748,-179.0,0.0002,2]
[420991269,1776871842757,-155.0,0.0002,2]
[420991270,1776871842768,-222.308037,0.0002,2]
[420991271,1776871842777,-8005.02344528,0.0002,2]
[420991272,1776871842787,-300.0,0.0002,2]
[420991273,1776871842797,-150.0,0.0002,10]
[420991274,1776871842806,-300.0,0.0002,4]
[420991275,1776871842816,-150.0,0.0002,2]
[420991276,1776871842825,-153.428406,0.0002,2]
[420991277,1776871842835,-151.55000802,0.0002,2]
[420991278,1776871842845,-262.560586,0.0002,2]
[420991279,1776871842854,-262.560586,0.0002,2]
[420991280,1776871842863,-262.560586,0.0002,2]
[420991281,1776871842873,-262.560586,0.0002,2]
[420991282,1776871842882,-262.560586,0.0002,2]
[420991283,1776871842892,-262.560586,0.0002,2]
[420991284,1776871842902,-262.560586,0.0002,2]
[420991285,1776871842911,-262.560586,0.0002,2]
[420991286,1776871842920,-151.0,0.0002,2]
[420991287,1776871842930,-151.0,0.0002,2]
[420991288,1776871842940,-151.0,0.0002,2]
[420991289,1776871842949,-151.0,0.0002,2]
[420991290,1776871842959,-243.051005,0.0002,2]
[420991291,1776871842968,-243.051005,0.0002,2]
[420991292,1776871842978,-243.051005,0.0002,2]
[420991293,1776871842988,-243.051005,0.0002,2]
[420991294,1776871842997,-243.051005,0.0002,2]
[420991295,1776871843006,-243.051005,0.0002,2]
[420991296,1776871843018,-243.051005,0.0002,2]
[420991297,1776871843027,-243.051005,0.0002,2]
[420991298,1776871843037,-151.825389,0.0002,2]
[420991299,1776871843047,-1190.0,0.00020126,2]
[420991300,1776871843057,-151.0,0.00020154,2]
[420991301,1776871843067,-151.0,0.00020154,2]
[420991303,1776871843200,-151.0,0.00020154,2]
[420991305,1776871843209,-454.5112302,0.00020154,2]
[420991307,1776871843219,-326.3872618,0.00020154,2]
[420991309,1776871843228,-150.0,0.00020214,2]
[420991311,1776871843237,-150.0,0.00020214,2]
[420991313,1776871843247,-14972.21063202,0.00020223,3]
[420991315,1776871843257,-1190.0,0.000204,2]